{"text_format":"1","workbook":"xlsx","n_sheets":2,"sheets":["Dokumentation av åtgärder","Info baklängesräkning"],"not_rendered":{"charts":0,"images":2,"macros":0,"external_links":0,"defined_names":0,"comments":1,"pivot_tables":0},"unopened":[],"bounds":{"document_bytes":16777216,"sheet_cells":100000,"rows_first":2000,"rows_last":500,"rows_between":2000,"halvings":0,"cell_chars":16384,"cell_head_chars":4096},"cells_cut":0,"cells_raw":0,"read":"whole","date_system":"1900"}

{"sheet":"Dokumentation av åtgärder","index":0,"n_rows":59,"n_cols":19,"rows_kept":59,"cut":false,"hidden":false,"merged":[[0,0,0,3]]}
["Bilaga 1 - Åtgärder för minskad klimatpåverkan"]
["Datum för avstämning: xxx"]
[null,null,null,null,null,null,null,null,null,"Åtgärder som genomförs","(OBS! Viktigt att det står \"genomförs\" i kolumn D, annars räknas åtgärden inte!)"]
["Utgångsläge för procentuellt klimatkrav, om sådant finns",{"$f":"SUM(B5+K4)","v":0},"ton CO2-ekv",null,"Procentuell minskning av klimatpåverkan",{"$f":"IFERROR(K4/B4,\"Värde visas här när siffror finns\")","v":"Värde visas här när siffror finns"},null,null,null,"Minskad klimatpåverkan",{"$f":"SUMIF(D10:D59,\"genomförs\",K10:K59)","v":0},"ton CO2-ekv"]
["Projektets klimatpåverkan enligt sista klimatkalkylen i leverantörens uppdrag",null,"ton CO2-ekv",null,null,null,null,null,null,"Minskad energianvändning",{"$f":"SUMIF(D10:D59,\"genomförs\",M10:M59)","v":0},"GJ "]
[]
["Nr","Åtgärd","Kolumn1","Status","Kommentar status","Leverantörens teknikansvarige","Utgångläge","Kolumn2","Kolumn3","Kommentar om åtgärd","Effekt, minskning","Kolumn4","Kolumn5","Kostnad för åtgärd","Kostnad per ton CO2","Verfikat, EPD e.dyl.","Genomförs i skede","Övriga kommentarer","Kommentar från TRV"]
[null,"Benämning","Förtydligande av åtgärd","Utreds/ Genomförs/ Genomförs ej",null,"Namn och e-post","Beskrivning","ton CO2-ekv ","GJ",null,"ton CO2-ekv","% av projektets totala klimatpåverkan","GJ","+/- Kr","+/- kr/ton CO2-ekv","Finns/Godkänt/Ej godkänt/Ej aktuellt","Plan/ Projektering/ Entreprenad",null,"Godkänd eller \nej godkänd som klimatåtgärd"]
[null,"Exempel: Sprutbetong","Mängd projekterat sprutbetong är högre än vad krav är. Finns potential för optimering ","Genomförs","Har stämts av med gällande regelverk.",null,"150 mm sprutbetong i 100 m lång bergtunnel",450,2800,"Tjockleken kan minskas till 100 mm",150,1,930,"Minskade kostnader",null,"Ej aktuellt","Projektering",null,"Godkänd som klimatåtgärd/ ML 210426"]
[1,null,null,null,null,null,null,null,null,null,null,{"$f":"IFERROR(K10/$B$4,\"Ej aktuellt\")","v":"Ej aktuellt"},null,null,{"$f":"IFERROR(N10/K10,\"Värde saknas\")","v":"Värde saknas"}]
[2,null,null,null,null,null,null,null,null,null,null,{"$f":"IFERROR(K11/$B$4,\"Ej aktuellt\")","v":"Ej aktuellt"},null,null,{"$f":"IFERROR(N11/K11,\"Värde saknas\")","v":"Värde saknas"}]
[3,null,null,null,null,null,null,null,null,null,null,"Ej aktuellt",null,null,"Värde saknas"]
[4,null,null,null,null,null,null,null,null,null,null,"Ej aktuellt",null,null,"Värde saknas"]
[5,null,null,null,null,null,null,null,null,null,null,"Ej aktuellt",null,null,"Värde saknas"]
[6,null,null,null,null,null,null,null,null,null,null,"Ej aktuellt",null,null,"Värde saknas"]
[7,null,null,null,null,null,null,null,null,null,null,"Ej aktuellt",null,null,"Värde saknas"]
[8,null,null,null,null,null,null,null,null,null,null,"Ej aktuellt",null,null,"Värde saknas"]
[9,null,null,null,null,null,null,null,null,null,null,"Ej aktuellt",null,null,"Värde saknas"]
[10,null,null,null,null,null,null,null,null,null,null,"Ej aktuellt",null,null,"Värde saknas"]
[11,null,null,null,null,null,null,null,null,null,null,"Ej aktuellt",null,null,"Värde saknas"]
[12,null,null,null,null,null,null,null,null,null,null,"Ej aktuellt",null,null,"Värde saknas"]
[13,null,null,null,null,null,null,null,null,null,null,"Ej aktuellt",null,null,"Värde saknas"]
[14,null,null,null,null,null,null,null,null,null,null,"Ej aktuellt",null,null,"Värde saknas"]
[15,null,null,null,null,null,null,null,null,null,null,"Ej aktuellt",null,null,"Värde saknas"]
[16,null,null,null,null,null,null,null,null,null,null,"Ej aktuellt",null,null,"Värde saknas"]
[17,null,null,null,null,null,null,null,null,null,null,"Ej aktuellt",null,null,"Värde saknas"]
[18,null,null,null,null,null,null,null,null,null,null,"Ej aktuellt",null,null,"Värde saknas"]
[19,null,null,null,null,null,null,null,null,null,null,"Ej aktuellt",null,null,"Värde saknas"]
[20,null,null,null,null,null,null,null,null,null,null,"Ej aktuellt",null,null,"Värde saknas"]
[21,null,null,null,null,null,null,null,null,null,null,"Ej aktuellt",null,null,"Värde saknas"]
[22,null,null,null,null,null,null,null,null,null,null,"Ej aktuellt",null,null,"Värde saknas"]
[23,null,null,null,null,null,null,null,null,null,null,"Ej aktuellt",null,null,"Värde saknas"]
[24,null,null,null,null,null,null,null,null,null,null,"Ej aktuellt",null,null,"Värde saknas"]
[25,null,null,null,null,null,null,null,null,null,null,"Ej aktuellt",null,null,"Värde saknas"]
[26,null,null,null,null,null,null,null,null,null,null,"Ej aktuellt",null,null,"Värde saknas"]
[27,null,null,null,null,null,null,null,null,null,null,"Ej aktuellt",null,null,"Värde saknas"]
[28,null,null,null,null,null,null,null,null,null,null,"Ej aktuellt",null,null,"Värde saknas"]
[29,null,null,null,null,null,null,null,null,null,null,"Ej aktuellt",null,null,"Värde saknas"]
[30,null,null,null,null,null,null,null,null,null,null,"Ej aktuellt",null,null,"Värde saknas"]
[31,null,null,null,null,null,null,null,null,null,null,"Ej aktuellt",null,null,"Värde saknas"]
[32,null,null,null,null,null,null,null,null,null,null,"Ej aktuellt",null,null,"Värde saknas"]
[33,null,null,null,null,null,null,null,null,null,null,"Ej aktuellt",null,null,"Värde saknas"]
[34,null,null,null,null,null,null,null,null,null,null,"Ej aktuellt",null,null,"Värde saknas"]
[35,null,null,null,null,null,null,null,null,null,null,"Ej aktuellt",null,null,"Värde saknas"]
[36,null,null,null,null,null,null,null,null,null,null,"Ej aktuellt",null,null,"Värde saknas"]
[37,null,null,null,null,null,null,null,null,null,null,"Ej aktuellt",null,null,"Värde saknas"]
[38,null,null,null,null,null,null,null,null,null,null,"Ej aktuellt",null,null,"Värde saknas"]
[39,null,null,null,null,null,null,null,null,null,null,"Ej aktuellt",null,null,"Värde saknas"]
[40,null,null,null,null,null,null,null,null,null,null,"Ej aktuellt",null,null,"Värde saknas"]
[41,null,null,null,null,null,null,null,null,null,null,"Ej aktuellt",null,null,"Värde saknas"]
[42,null,null,null,null,null,null,null,null,null,null,"Ej aktuellt",null,null,"Värde saknas"]
[43,null,null,null,null,null,null,null,null,null,null,"Ej aktuellt",null,null,"Värde saknas"]
[44,null,null,null,null,null,null,null,null,null,null,"Ej aktuellt",null,null,"Värde saknas"]
[45,null,null,null,null,null,null,null,null,null,null,"Ej aktuellt",null,null,"Värde saknas"]
[46,null,null,null,null,null,null,null,null,null,null,"Ej aktuellt",null,null,"Värde saknas"]
[47,null,null,null,null,null,null,null,null,null,null,"Ej aktuellt",null,null,"Värde saknas"]
[48,null,null,null,null,null,null,null,null,null,null,"Ej aktuellt",null,null,"Värde saknas"]
[49,null,null,null,null,null,null,null,null,null,null,"Ej aktuellt",null,null,"Värde saknas"]
[50,null,null,null,null,null,null,null,null,null,null,"Ej aktuellt",null,null,"Värde saknas"]

{"sheet":"Info baklängesräkning","index":1,"n_rows":5,"n_cols":1,"rows_kept":5,"cut":false,"hidden":false,"merged":[]}
[]
["Uppföljning av klimatkrav genom att räkna baklänges från sista klimatkalkylen"]
["Vissa projekt väljer att följa upp det procentuella klimatkravet genom att räkna baklänges från den sista klimatkalkylen i leverantörens uppdrag. "]
["I en entreprenad är den sista klimatkalkylen klimatdeklarationen."]
["Utgångsläget beräknas då genom att lägga till klimateffekten av de åtgärder som har genomförts i uppdraget till den sista klimatkalkylen, enligt figur nedan."]